[Event "Titled Tuesday Blitz April 19 Late 2022"]
[White "Djokic, Mihailo"]
[Black "Petrovskyi, Vadym"]
[WhiteFideId "976440"]
[BlackFideId "14165210"]
[WhiteElo "2202"]
[BlackElo "2400"]
[Result "0-1"]
[Round "07"]
[TimeControl "180+1"]
[Date "2022.04.19"]
[WhiteClock "0:00:03"]
[BlackClock "0:00:38"]

1. e4 {[%clk 0:03:00]}  c5 {[%clk 0:02:57]} 2. Nf3 {[%clk 0:03:01]}  d6 {[%clk 0:02:57]} 3. d4 {[%clk 0:03:02]}  cxd4 {[%clk 0:02:58]} 4. Nxd4 {[%clk 0:03:02]}  Nf6 {[%clk 0:02:58]} 5. Nc3 {[%clk 0:03:03]}  a6 {[%clk 0:02:59]} 6. Rg1 {[%clk 0:03:03]}  e5 {[%clk 0:02:55]} 7. Nb3 {[%clk 0:03:03]}  b5 {[%clk 0:02:55]} 8. g4 {[%clk 0:03:03]}  Bb7 {[%clk 0:02:55]} 9. f3 {[%clk 0:03:03]}  Nfd7 {[%clk 0:02:52]} 10. Be3 {[%clk 0:03:02]}  Nb6 {[%clk 0:02:52]} 11. Na5 {[%clk 0:02:53]}  Bc8 {[%clk 0:02:49]} 12. a4 {[%clk 0:02:33]}  b4 {[%clk 0:02:39]} 13. Nd5 {[%clk 0:02:32]}  N6d7 {[%clk 0:02:10]} 14. Nc4 {[%clk 0:02:24]}  Nc6 {[%clk 0:01:31]} 15. a5 {[%clk 0:01:52]}  Rb8 {[%clk 0:01:27]} 16. Qd2 {[%clk 0:01:45]}  Nc5 {[%clk 0:01:26]} 17. Ncb6 {[%clk 0:01:36]}  Nxa5 {[%clk 0:01:16]} 18. Rxa5 {[%clk 0:01:30]}  Rxb6 {[%clk 0:01:16]} 19. Nxb6 {[%clk 0:01:09]}  Qxb6 {[%clk 0:01:17]} 20. Ra1 {[%clk 0:01:01]}  Be7 {[%clk 0:01:14]} 21. Bc4 {[%clk 0:00:56]}  h6 {[%clk 0:01:14]} 22. Kf1 {[%clk 0:00:48]}  Bg5 {[%clk 0:01:09]} 23. Bxg5 {[%clk 0:00:41]}  hxg5 {[%clk 0:01:10]} 24. Rg2 {[%clk 0:00:38]}  Be6 {[%clk 0:01:05]} 25. Be2 {[%clk 0:00:33]}  f6 {[%clk 0:00:59]} 26. Rd1 {[%clk 0:00:33]}  Ke7 {[%clk 0:00:58]} 27. Qe3 {[%clk 0:00:31]}  a5 {[%clk 0:00:57]} 28. b3 {[%clk 0:00:31]}  Bf7 {[%clk 0:00:52]} 29. Rd2 {[%clk 0:00:30]}  Qb7 {[%clk 0:00:50]} 30. Bd1 {[%clk 0:00:28]}  Qc7 {[%clk 0:00:49]} 31. Kg1 {[%clk 0:00:26]}  Ne6 {[%clk 0:00:49]} 32. Rgf2 {[%clk 0:00:19]}  Nf4 {[%clk 0:00:49]} 33. Rf1 {[%clk 0:00:18]}  Rc8 {[%clk 0:00:46]} 34. Kh1 {[%clk 0:00:17]}  Qb7 {[%clk 0:00:46]} 35. Rff2 {[%clk 0:00:16]}  Rc3 {[%clk 0:00:46]} 36. Qe1 {[%clk 0:00:16]}  d5 {[%clk 0:00:47]} 37. exd5 {[%clk 0:00:16]}  Bxd5 {[%clk 0:00:48]} 38. Qf1 {[%clk 0:00:15]}  Qc6 {[%clk 0:00:47]} 39. Kg1 {[%clk 0:00:12]}  e4 {[%clk 0:00:48]} 40. fxe4 {[%clk 0:00:11]}  Bxe4 {[%clk 0:00:49]} 41. Rxf4 {[%clk 0:00:08]}  gxf4 {[%clk 0:00:49]} 42. Qxf4 {[%clk 0:00:08]}  g5 {[%clk 0:00:44]} 43. Qf2 {[%clk 0:00:08]}  Kf7 {[%clk 0:00:42]} 44. Re2 {[%clk 0:00:04]}  Bf3 {[%clk 0:00:37]} 45. Rd2 {[%clk 0:00:03]}  Bxd1 {[%clk 0:00:37]} 46. Rxd1 {[%clk 0:00:03]}  Rxc2 {[%clk 0:00:38]} 47. Qa7+ {[%clk 0:00:03]}  Kg6 {[%clk 0:00:38]} 0-1


[Site "https://www.chess.com"]

[Event "Titled Tuesday Blitz April 19 Late 2022"]
[White "Fiedorek, Michal"]
[Black "Stanisz, Patryk"]
[WhiteFideId "1199528"]
[BlackFideId "1123106"]
[WhiteElo "1833"]
[BlackElo "1833"]
[Result "1-0"]
[Round "07"]
[TimeControl "180+1"]
[Date "2022.04.19"]
[WhiteClock "0:00:23"]
[BlackClock "0:00:03"]

1. Nf3 {[%clk 0:03:00]}  d5 {[%clk 0:02:47]} 2. b3 {[%clk 0:02:59]}  c6 {[%clk 0:02:46]} 3. Bb2 {[%clk 0:02:58]}  Bf5 {[%clk 0:02:47]} 4. d3 {[%clk 0:02:56]}  e6 {[%clk 0:02:47]} 5. Nbd2 {[%clk 0:02:57]}  h6 {[%clk 0:02:47]} 6. g3 {[%clk 0:02:58]}  Nf6 {[%clk 0:02:47]} 7. Bg2 {[%clk 0:02:58]}  Nbd7 {[%clk 0:02:43]} 8. O-O {[%clk 0:02:59]}  Be7 {[%clk 0:02:43]} 9. Re1 {[%clk 0:02:58]}  Bh7 {[%clk 0:02:43]} 10. c4 {[%clk 0:02:59]}  Qb6 {[%clk 0:02:41]} 11. Rc1 {[%clk 0:02:55]}  O-O {[%clk 0:02:34]} 12. Qc2 {[%clk 0:02:47]}  a5 {[%clk 0:02:29]} 13. e4 {[%clk 0:02:40]}  Ng4 {[%clk 0:02:02]} 14. Nf1 {[%clk 0:02:32]}  Bc5 {[%clk 0:01:49]} 15. d4 {[%clk 0:02:30]}  Bxe4 {[%clk 0:01:48]} 16. Rxe4 {[%clk 0:02:29]}  dxe4 {[%clk 0:01:37]} 17. dxc5 {[%clk 0:02:28]}  Nxc5 {[%clk 0:01:34]} 18. Nd4 {[%clk 0:02:20]}  Nd3 {[%clk 0:01:27]} 19. c5 {[%clk 0:02:18]}  Qd8 {[%clk 0:01:22]} 20. Bxe4 {[%clk 0:02:11]}  Ngxf2 {[%clk 0:01:11]} 21. Bxd3 {[%clk 0:02:07]}  Nxd3 {[%clk 0:01:11]} 22. Qxd3 {[%clk 0:02:07]}  e5 {[%clk 0:01:12]} 23. Rc4 {[%clk 0:01:54]}  exd4 {[%clk 0:01:09]} 24. Rxd4 {[%clk 0:01:55]}  Qf6 {[%clk 0:01:03]} 25. Nd2 {[%clk 0:01:50]}  Rfe8 {[%clk 0:00:58]} 26. Ne4 {[%clk 0:01:49]}  Qf5 {[%clk 0:00:45]} 27. Qc3 {[%clk 0:01:40]}  f6 {[%clk 0:00:32]} 28. Qd3 {[%clk 0:01:05]}  a4 {[%clk 0:00:11]} 29. bxa4 {[%clk 0:00:59]}  Kh8 {[%clk 0:00:09]} 30. Bc3 {[%clk 0:00:55]}  Re5 {[%clk 0:00:04]} 31. Rd8+ {[%clk 0:00:37]}  Rxd8 {[%clk 0:00:04]} 32. Qxd8+ {[%clk 0:00:36]}  Kh7 {[%clk 0:00:04]} 33. Bxe5 {[%clk 0:00:33]}  Qxe4 {[%clk 0:00:03]} 34. Bd4 {[%clk 0:00:23]} 1-0


[Site "https://www.chess.com"]

[Event "Titled Tuesday Blitz April 19 Late 2022"]
[White "Hasangatin, Ramil"]
[Black "Timofeev, Artyom"]
[WhiteFideId "4122160"]
[BlackFideId "4140419"]
[WhiteElo "2375"]
[BlackElo "2594"]
[Result "0-1"]
[Round "07"]
[TimeControl "180+1"]
[Date "2022.04.19"]
[WhiteClock "0:00:07"]
[BlackClock "0:00:14"]

1. d4 {[%clk 0:03:00]}  Nf6 {[%clk 0:02:59]} 2. Nc3 {[%clk 0:03:01]}  d5 {[%clk 0:02:56]} 3. Bg5 {[%clk 0:03:01]}  Nbd7 {[%clk 0:02:56]} 4. Nf3 {[%clk 0:03:01]}  g6 {[%clk 0:02:54]} 5. e3 {[%clk 0:03:01]}  Bg7 {[%clk 0:02:54]} 6. Be2 {[%clk 0:03:02]}  O-O {[%clk 0:02:54]} 7. O-O {[%clk 0:03:02]}  c6 {[%clk 0:02:54]} 8. h3 {[%clk 0:03:02]}  a5 {[%clk 0:02:52]} 9. a4 {[%clk 0:03:00]}  Qb6 {[%clk 0:02:48]} 10. Rb1 {[%clk 0:02:59]}  Re8 {[%clk 0:02:45]} 11. Bf4 {[%clk 0:02:59]}  Nf8 {[%clk 0:02:40]} 12. Bd3 {[%clk 0:02:56]}  Ne6 {[%clk 0:02:37]} 13. Be5 {[%clk 0:02:55]}  Nc7 {[%clk 0:02:25]} 14. Re1 {[%clk 0:02:52]}  Na6 {[%clk 0:02:25]} 15. Na2 {[%clk 0:02:11]}  Bd7 {[%clk 0:02:06]} 16. c3 {[%clk 0:02:10]}  c5 {[%clk 0:02:04]} 17. Nc1 {[%clk 0:01:57]}  Rac8 {[%clk 0:01:50]} 18. Ne2 {[%clk 0:01:51]}  Bc6 {[%clk 0:01:42]} 19. Nf4 {[%clk 0:01:51]}  Nb8 {[%clk 0:01:32]} 20. Ne2 {[%clk 0:01:32]}  Nbd7 {[%clk 0:01:29]} 21. Bh2 {[%clk 0:01:32]}  Red8 {[%clk 0:01:24]} 22. Ne5 {[%clk 0:01:31]}  Ne4 {[%clk 0:01:15]} 23. Nxc6 {[%clk 0:01:24]}  bxc6 {[%clk 0:01:14]} 24. Qc2 {[%clk 0:01:15]}  Nef6 {[%clk 0:01:13]} 25. c4 {[%clk 0:01:12]}  cxd4 {[%clk 0:01:11]} 26. exd4 {[%clk 0:01:05]}  dxc4 {[%clk 0:01:06]} 27. Bxc4 {[%clk 0:00:58]}  Nd5 {[%clk 0:01:05]} 28. b3 {[%clk 0:00:52]}  e6 {[%clk 0:01:05]} 29. Rbd1 {[%clk 0:00:49]}  Nb4 {[%clk 0:00:56]} 30. Qe4 {[%clk 0:00:35]}  Nf6 {[%clk 0:00:56]} 31. Qh4 {[%clk 0:00:35]}  Nfd5 {[%clk 0:00:49]} 32. Be5 {[%clk 0:00:32]}  Re8 {[%clk 0:00:48]} 33. Rf1 {[%clk 0:00:31]}  Qd8 {[%clk 0:00:47]} 34. Qg3 {[%clk 0:00:30]}  Qe7 {[%clk 0:00:42]} 35. Nc3 {[%clk 0:00:28]}  Nxc3 {[%clk 0:00:30]} 36. Qxc3 {[%clk 0:00:29]}  Red8 {[%clk 0:00:29]} 37. Rfe1 {[%clk 0:00:25]}  Bxe5 {[%clk 0:00:28]} 38. dxe5 {[%clk 0:00:25]}  c5 {[%clk 0:00:28]} 39. Bb5 {[%clk 0:00:23]}  Rd5 {[%clk 0:00:27]} 40. Rxd5 {[%clk 0:00:18]}  exd5 {[%clk 0:00:27]} 41. e6 {[%clk 0:00:16]}  fxe6 {[%clk 0:00:26]} 42. Qe5 {[%clk 0:00:17]}  c4 {[%clk 0:00:20]} 43. bxc4 {[%clk 0:00:14]}  dxc4 {[%clk 0:00:20]} 44. Qe4 {[%clk 0:00:08]}  c3 {[%clk 0:00:19]} 45. Bc4 {[%clk 0:00:08]}  Kg7 {[%clk 0:00:19]} 46. Bxe6 {[%clk 0:00:08]}  Rf8 {[%clk 0:00:17]} 47. Qd4+ {[%clk 0:00:06]}  Qf6 {[%clk 0:00:17]} 48. Qa7+ {[%clk 0:00:06]}  Kh8 {[%clk 0:00:17]} 49. Bb3 {[%clk 0:00:07]}  Nd3 {[%clk 0:00:15]} 50. Re2 {[%clk 0:00:07]}  Nc1 {[%clk 0:00:14]} 51. Rc2 {[%clk 0:00:07]}  Nxb3 {[%clk 0:00:14]} 0-1


[Site "https://www.chess.com"]

[Event "Titled Tuesday Blitz April 19 Late 2022"]
[White "Hoffmann, Asa"]
[Black "Koutlas, Nikolaos"]
[WhiteFideId "2001470"]
[BlackFideId "25827138"]
[WhiteElo "2117"]
[BlackElo "1645"]
[Result "1/2-1/2"]
[Round "07"]
[TimeControl "180+1"]
[Date "2022.04.19"]
[WhiteClock "0:00:02"]
[BlackClock "0:00:04"]

1. d4 {[%clk 0:02:57]}  Nf6 {[%clk 0:02:54]} 2. Bg5 {[%clk 0:02:56]}  e6 {[%clk 0:02:53]} 3. Nd2 {[%clk 0:02:55]}  d5 {[%clk 0:02:52]} 4. e3 {[%clk 0:02:54]}  h6 {[%clk 0:02:51]} 5. Bh4 {[%clk 0:02:52]}  c5 {[%clk 0:02:51]} 6. c3 {[%clk 0:02:52]}  Nc6 {[%clk 0:02:51]} 7. f4 {[%clk 0:02:52]}  Qb6 {[%clk 0:02:39]} 8. Rb1 {[%clk 0:02:51]}  cxd4 {[%clk 0:02:38]} 9. exd4 {[%clk 0:02:51]}  Bd7 {[%clk 0:02:37]} 10. Bd3 {[%clk 0:02:50]}  Bd6 {[%clk 0:02:37]} 11. Bg3 {[%clk 0:02:45]}  Ne7 {[%clk 0:02:33]} 12. Ngf3 {[%clk 0:02:44]}  Bb5 {[%clk 0:02:31]} 13. Qe2 {[%clk 0:02:30]}  Bxd3 {[%clk 0:02:29]} 14. Qxd3 {[%clk 0:02:30]}  Nf5 {[%clk 0:02:29]} 15. Ne5 {[%clk 0:02:26]}  Nxg3 {[%clk 0:02:23]} 16. Qxg3 {[%clk 0:02:23]}  O-O {[%clk 0:02:16]} 17. O-O {[%clk 0:02:22]}  a5 {[%clk 0:02:12]} 18. f5 {[%clk 0:02:21]}  Rae8 {[%clk 0:01:52]} 19. Kh1 {[%clk 0:02:19]}  exf5 {[%clk 0:01:37]} 20. Rxf5 {[%clk 0:02:18]}  Ne4 {[%clk 0:01:37]} 21. Nxe4 {[%clk 0:01:59]}  dxe4 {[%clk 0:01:38]} 22. Nc4 {[%clk 0:01:36]}  Bxg3 {[%clk 0:01:36]} 23. Nxb6 {[%clk 0:01:36]}  g6 {[%clk 0:01:21]} 24. Rd5 {[%clk 0:01:20]}  Bf2 {[%clk 0:01:18]} 25. g3 {[%clk 0:00:59]}  Re6 {[%clk 0:01:10]} 26. Nd7 {[%clk 0:00:55]}  Rfe8 {[%clk 0:01:02]} 27. Ne5 {[%clk 0:00:51]}  Be3 {[%clk 0:00:29]} 28. Re1 {[%clk 0:00:46]}  Bd2 {[%clk 0:00:21]} 29. Re2 {[%clk 0:00:33]}  e3 {[%clk 0:00:17]} 30. Kg2 {[%clk 0:00:30]}  g5 {[%clk 0:00:11]} 31. Rxa5 {[%clk 0:00:25]}  f6 {[%clk 0:00:10]} 32. Nf3 {[%clk 0:00:25]}  Bc1 {[%clk 0:00:10]} 33. d5 {[%clk 0:00:22]}  Re4 {[%clk 0:00:05]} 34. Rb5 {[%clk 0:00:21]}  g4 {[%clk 0:00:02]} 35. Nd4 {[%clk 0:00:19]}  h5 {[%clk 0:00:03]} 36. d6 {[%clk 0:00:19]}  h4 {[%clk 0:00:03]} 37. gxh4 {[%clk 0:00:18]}  Rf4 {[%clk 0:00:03]} 38. Rd5 {[%clk 0:00:17]}  Kf7 {[%clk 0:00:02]} 39. d7 {[%clk 0:00:17]}  Rd8 {[%clk 0:00:03]} 40. h5 {[%clk 0:00:16]}  g3 {[%clk 0:00:03]} 41. hxg3 {[%clk 0:00:16]}  Rg4 {[%clk 0:00:04]} 42. Kf3 {[%clk 0:00:16]}  Rg5 {[%clk 0:00:04]} 43. Rxg5 {[%clk 0:00:16]}  fxg5 {[%clk 0:00:05]} 44. Nf5 {[%clk 0:00:16]}  Rxd7 {[%clk 0:00:05]} 45. Nxe3 {[%clk 0:00:16]}  Rd3 {[%clk 0:00:04]} 46. Ke4 {[%clk 0:00:16]}  Rd7 {[%clk 0:00:03]} 47. g4 {[%clk 0:00:16]}  Bxe3 {[%clk 0:00:03]} 48. Rxe3 {[%clk 0:00:16]}  Rd2 {[%clk 0:00:03]} 49. Rd3 {[%clk 0:00:13]}  Rxb2 {[%clk 0:00:03]} 50. Kf5 {[%clk 0:00:13]}  Rb5+ {[%clk 0:00:02]} 51. Ke4 {[%clk 0:00:12]}  Ra5 {[%clk 0:00:03]} 52. Rd7+ {[%clk 0:00:11]}  Ke6 {[%clk 0:00:03]} 53. Rxb7 {[%clk 0:00:11]}  Rxa2 {[%clk 0:00:03]} 54. Rb6+ {[%clk 0:00:11]}  Kf7 {[%clk 0:00:03]} 55. h6 {[%clk 0:00:11]}  Ra4+ {[%clk 0:00:03]} 56. Kd5 {[%clk 0:00:08]}  Ra5+ {[%clk 0:00:03]} 57. Kd4 {[%clk 0:00:08]}  Ra4+ {[%clk 0:00:03]} 58. c4 {[%clk 0:00:08]}  Ra1 {[%clk 0:00:04]} 59. c5 {[%clk 0:00:07]}  Rg1 {[%clk 0:00:04]} 60. c6 {[%clk 0:00:07]}  Rxg4+ {[%clk 0:00:05]} 61. Kd5 {[%clk 0:00:08]}  Rg1 {[%clk 0:00:04]} 62. Kd6 {[%clk 0:00:08]}  Rd1+ {[%clk 0:00:05]} 63. Kc7 {[%clk 0:00:08]}  Kg6 {[%clk 0:00:05]} 64. Rb5 {[%clk 0:00:07]}  Kxh6 {[%clk 0:00:05]} 65. Kb7 {[%clk 0:00:07]}  Rc1 {[%clk 0:00:04]} 66. c7 {[%clk 0:00:07]}  Kh5 {[%clk 0:00:04]} 67. c8=Q {[%clk 0:00:06]}  Rxc8 {[%clk 0:00:03]} 68. Kxc8 {[%clk 0:00:06]}  Kh4 {[%clk 0:00:04]} 69. Kd7 {[%clk 0:00:04]}  g4 {[%clk 0:00:05]} 70. Ke6 {[%clk 0:00:04]}  g3 {[%clk 0:00:05]} 71. Kf5 {[%clk 0:00:04]}  g2 {[%clk 0:00:06]} 72. Rb1 {[%clk 0:00:03]}  Kg3 {[%clk 0:00:06]} 73. Ke4 {[%clk 0:00:04]}  Kf2 {[%clk 0:00:05]} 74. Rb2+ {[%clk 0:00:03]}  Kg3 {[%clk 0:00:04]} 75. Rb1 {[%clk 0:00:03]}  Kf2 {[%clk 0:00:04]} 76. Rc1 {[%clk 0:00:03]}  g1=Q {[%clk 0:00:03]} 77. Rxg1 {[%clk 0:00:02]}  Kxg1 {[%clk 0:00:04]} 1/2-1/2


[Site "https://www.chess.com"]

[Event "Titled Tuesday Blitz April 19 Late 2022"]
[White "Ibarra Jerez, Jose Carlos"]
[Black "Caruana, Fabiano"]
[WhiteFideId "2226332"]
[BlackFideId "2020009"]
[WhiteElo "2626"]
[BlackElo "2744"]
[Result "1/2-1/2"]
[Round "07"]
[TimeControl "180+1"]
[Date "2022.04.19"]
[WhiteClock "0:00:08"]
[BlackClock "0:00:07"]

1. e4 {[%clk 0:03:00]}  e5 {[%clk 0:02:59]} 2. Nf3 {[%clk 0:03:01]}  Nc6 {[%clk 0:03:00]} 3. d4 {[%clk 0:03:01]}  exd4 {[%clk 0:03:00]} 4. Nxd4 {[%clk 0:03:02]}  Nf6 {[%clk 0:02:59]} 5. Nxc6 {[%clk 0:03:02]}  bxc6 {[%clk 0:02:59]} 6. Bd3 {[%clk 0:03:03]}  d5 {[%clk 0:02:58]} 7. exd5 {[%clk 0:03:04]}  cxd5 {[%clk 0:02:58]} 8. O-O {[%clk 0:03:03]}  Be7 {[%clk 0:02:58]} 9. c4 {[%clk 0:03:04]}  O-O {[%clk 0:02:58]} 10. cxd5 {[%clk 0:03:03]}  Nxd5 {[%clk 0:02:58]} 11. Qf3 {[%clk 0:03:02]}  c6 {[%clk 0:02:57]} 12. Rd1 {[%clk 0:03:02]}  Bf6 {[%clk 0:02:54]} 13. Nc3 {[%clk 0:03:00]}  Be6 {[%clk 0:02:50]} 14. Be4 {[%clk 0:03:00]}  Bxc3 {[%clk 0:02:47]} 15. bxc3 {[%clk 0:02:59]}  Qh4 {[%clk 0:02:42]} 16. Rd4 {[%clk 0:02:45]}  Qe7 {[%clk 0:02:14]} 17. c4 {[%clk 0:02:42]}  Nb4 {[%clk 0:02:10]} 18. Ba3 {[%clk 0:02:16]}  Rad8 {[%clk 0:01:50]} 19. Rxd8 {[%clk 0:01:34]}  Rxd8 {[%clk 0:01:51]} 20. h3 {[%clk 0:01:27]}  c5 {[%clk 0:01:45]} 21. Bb2 {[%clk 0:01:20]}  f6 {[%clk 0:01:14]} 22. a3 {[%clk 0:01:16]}  Na6 {[%clk 0:01:14]} 23. Re1 {[%clk 0:01:13]}  Qf7 {[%clk 0:01:11]} 24. Bxh7+ {[%clk 0:01:04]}  Kxh7 {[%clk 0:01:10]} 25. Qe4+ {[%clk 0:01:04]}  Kg8 {[%clk 0:00:51]} 26. Qxe6 {[%clk 0:01:04]}  Qxe6 {[%clk 0:00:48]} 27. Rxe6 {[%clk 0:01:04]}  Nb8 {[%clk 0:00:49]} 28. Re2 {[%clk 0:00:56]}  Kf7 {[%clk 0:00:47]} 29. Bc3 {[%clk 0:00:46]}  Rd3 {[%clk 0:00:40]} 30. Re3 {[%clk 0:00:46]}  Rxe3 {[%clk 0:00:39]} 31. fxe3 {[%clk 0:00:46]}  Nd7 {[%clk 0:00:40]} 32. Kf2 {[%clk 0:00:31]}  Nb6 {[%clk 0:00:40]} 33. e4 {[%clk 0:00:26]}  Nxc4 {[%clk 0:00:39]} 34. a4 {[%clk 0:00:26]}  Ke6 {[%clk 0:00:33]} 35. Kf3 {[%clk 0:00:23]}  Nb6 {[%clk 0:00:27]} 36. a5 {[%clk 0:00:22]}  Na4 {[%clk 0:00:28]} 37. Ba1 {[%clk 0:00:16]}  a6 {[%clk 0:00:14]} 38. Ke3 {[%clk 0:00:16]}  Kd6 {[%clk 0:00:09]} 39. Kd3 {[%clk 0:00:16]}  c4+ {[%clk 0:00:06]} 40. Kxc4 {[%clk 0:00:16]}  Nc5 {[%clk 0:00:07]} 41. e5+ {[%clk 0:00:17]}  Kc6 {[%clk 0:00:04]} 42. exf6 {[%clk 0:00:17]}  gxf6 {[%clk 0:00:05]} 43. Bxf6 {[%clk 0:00:17]}  Nb7 {[%clk 0:00:06]} 44. Bc3 {[%clk 0:00:16]}  Nd6+ {[%clk 0:00:06]} 45. Kd3 {[%clk 0:00:16]}  Kd5 {[%clk 0:00:06]} 46. g4 {[%clk 0:00:16]}  Ne4 {[%clk 0:00:07]} 47. Be1 {[%clk 0:00:15]}  Nc5+ {[%clk 0:00:06]} 48. Ke3 {[%clk 0:00:15]}  Ne6 {[%clk 0:00:06]} 49. h4 {[%clk 0:00:14]}  Nd4 {[%clk 0:00:07]} 50. Kf4 {[%clk 0:00:12]}  Ne2+ {[%clk 0:00:03]} 51. Kg5 {[%clk 0:00:09]}  Nd4 {[%clk 0:00:04]} 52. Bf2 {[%clk 0:00:09]}  Nc6 {[%clk 0:00:04]} 53. Bb6 {[%clk 0:00:08]}  Ke6 {[%clk 0:00:04]} 54. h5 {[%clk 0:00:07]}  Ne5 {[%clk 0:00:04]} 55. h6 {[%clk 0:00:06]}  Kf7 {[%clk 0:00:04]} 56. Kf5 {[%clk 0:00:06]}  Ng6 {[%clk 0:00:04]} 57. g5 {[%clk 0:00:06]}  Ne7+ {[%clk 0:00:05]} 58. Ke5 {[%clk 0:00:06]}  Kg6 {[%clk 0:00:05]} 59. Be3 {[%clk 0:00:06]}  Nc6+ {[%clk 0:00:05]} 60. Ke6 {[%clk 0:00:06]}  Nxa5 {[%clk 0:00:06]} 61. h7 {[%clk 0:00:06]}  Kg7 {[%clk 0:00:04]} 62. h8=Q+ {[%clk 0:00:05]}  Kxh8 {[%clk 0:00:04]} 63. Kf7 {[%clk 0:00:06]}  Nc6 {[%clk 0:00:04]} 64. Bf4 {[%clk 0:00:03]}  Nd8+ {[%clk 0:00:04]} 65. Kf6 {[%clk 0:00:04]}  Kg8 {[%clk 0:00:04]} 66. g6 {[%clk 0:00:04]}  Nc6 {[%clk 0:00:04]} 67. Bd6 {[%clk 0:00:05]}  a5 {[%clk 0:00:04]} 68. Ke6 {[%clk 0:00:05]}  Nd4+ {[%clk 0:00:04]} 69. Kd5 {[%clk 0:00:05]}  Nb5 {[%clk 0:00:04]} 70. Bc5 {[%clk 0:00:05]}  a4 {[%clk 0:00:04]} 71. Kc4 {[%clk 0:00:06]}  Nc7 {[%clk 0:00:04]} 72. Kb4 {[%clk 0:00:05]}  Na6+ {[%clk 0:00:04]} 73. Kxa4 {[%clk 0:00:06]}  Nxc5+ {[%clk 0:00:05]} 74. Kb5 {[%clk 0:00:07]}  Kg7 {[%clk 0:00:06]} 75. Kc4 {[%clk 0:00:08]}  Kxg6 {[%clk 0:00:07]} 1/2-1/2


[Site "https://www.chess.com"]

[Event "Titled Tuesday Blitz April 19 Late 2022"]
[White "Indjic, Aleksandar"]
[Black "Wagner, Dennis"]
[WhiteFideId "911925"]
[BlackFideId "24650684"]
[WhiteElo "2616"]
[BlackElo "2355"]
[Result "1-0"]
[Round "07"]
[TimeControl "180+1"]
[Date "2022.04.19"]
[WhiteClock "0:00:12"]
[BlackClock "0:00:02"]

1. d4 {[%clk 0:02:36]}  Nf6 {[%clk 0:02:59]} 2. c4 {[%clk 0:02:35]}  e6 {[%clk 0:02:59]} 3. Nc3 {[%clk 0:02:36]}  Bb4 {[%clk 0:02:59]} 4. f3 {[%clk 0:02:36]}  c5 {[%clk 0:02:55]} 5. a3 {[%clk 0:02:36]}  Bxc3+ {[%clk 0:02:47]} 6. bxc3 {[%clk 0:02:37]}  d6 {[%clk 0:02:31]} 7. e4 {[%clk 0:01:38]}  Nc6 {[%clk 0:02:30]} 8. Be3 {[%clk 0:01:33]}  O-O {[%clk 0:02:20]} 9. Bd3 {[%clk 0:01:32]}  b6 {[%clk 0:02:20]} 10. Ne2 {[%clk 0:01:29]}  Ba6 {[%clk 0:02:19]} 11. Ng3 {[%clk 0:01:29]}  Na5 {[%clk 0:02:16]} 12. Qe2 {[%clk 0:01:28]}  Rc8 {[%clk 0:02:13]} 13. d5 {[%clk 0:01:28]}  exd5 {[%clk 0:02:12]} 14. cxd5 {[%clk 0:01:27]}  Bxd3 {[%clk 0:02:11]} 15. Qxd3 {[%clk 0:01:27]}  c4 {[%clk 0:02:12]} 16. Qe2 {[%clk 0:01:27]}  Nb3 {[%clk 0:02:09]} 17. Rd1 {[%clk 0:01:26]}  Nd7 {[%clk 0:02:09]} 18. O-O {[%clk 0:01:25]}  Ne5 {[%clk 0:02:08]} 19. f4 {[%clk 0:01:06]}  Nd3 {[%clk 0:02:07]} 20. Qg4 {[%clk 0:01:06]}  Qf6 {[%clk 0:01:47]} 21. e5 {[%clk 0:01:02]}  Qg6 {[%clk 0:01:23]} 22. Qh4 {[%clk 0:01:01]}  f5 {[%clk 0:01:16]} 23. e6 {[%clk 0:00:39]}  Qe8 {[%clk 0:01:12]} 24. Nh5 {[%clk 0:00:29]}  Rc7 {[%clk 0:01:04]} 25. g4 {[%clk 0:00:27]}  fxg4 {[%clk 0:00:46]} 26. f5 {[%clk 0:00:27]}  Ne5 {[%clk 0:00:44]} 27. Kh1 {[%clk 0:00:22]}  Qa8 {[%clk 0:00:33]} 28. f6 {[%clk 0:00:17]}  gxf6 {[%clk 0:00:32]} 29. Nxf6+ {[%clk 0:00:14]}  Kh8 {[%clk 0:00:32]} 30. Bh6 {[%clk 0:00:14]}  Rfc8 {[%clk 0:00:13]} 31. Ne4 {[%clk 0:00:15]}  Nc5 {[%clk 0:00:06]} 32. Qf6+ {[%clk 0:00:14]}  Kg8 {[%clk 0:00:07]} 33. e7 {[%clk 0:00:12]}  Ng6 {[%clk 0:00:02]} 34. Qg7# {[%clk 0:00:12]} 1-0


[Site "https://www.chess.com"]

[Event "Titled Tuesday Blitz April 19 Late 2022"]
[White "Isajevsky, Anton"]
[Black "Ivanisevic, Ivan"]
[WhiteFideId "4142500"]
[BlackFideId "912417"]
[WhiteElo "2510"]
[BlackElo "2495"]
[Result "0-1"]
[Round "07"]
[TimeControl "180+1"]
[Date "2022.04.19"]
[WhiteClock "0:00:03"]
[BlackClock "0:00:35"]

1. c4 {[%clk 0:02:48]}  e5 {[%clk 0:02:58]} 2. g3 {[%clk 0:02:44]}  Nc6 {[%clk 0:02:48]} 3. Bg2 {[%clk 0:02:44]}  f5 {[%clk 0:02:49]} 4. Nc3 {[%clk 0:02:35]}  Nf6 {[%clk 0:02:49]} 5. d3 {[%clk 0:02:34]}  Bb4 {[%clk 0:02:48]} 6. Bd2 {[%clk 0:02:23]}  Bxc3 {[%clk 0:02:48]} 7. Bxc3 {[%clk 0:02:23]}  d6 {[%clk 0:02:49]} 8. d4 {[%clk 0:02:00]}  Ne4 {[%clk 0:02:16]} 9. Bxe4 {[%clk 0:01:38]}  fxe4 {[%clk 0:02:17]} 10. dxe5 {[%clk 0:01:38]}  dxe5 {[%clk 0:02:13]} 11. Qxd8+ {[%clk 0:01:37]}  Kxd8 {[%clk 0:02:14]} 12. f3 {[%clk 0:01:24]}  Bf5 {[%clk 0:02:09]} 13. fxe4 {[%clk 0:01:10]}  Bxe4 {[%clk 0:02:10]} 14. Nf3 {[%clk 0:01:11]}  Kc8 {[%clk 0:02:03]} 15. Rf1 {[%clk 0:00:52]}  Re8 {[%clk 0:02:02]} 16. O-O-O {[%clk 0:00:49]}  Bg6 {[%clk 0:01:55]} 17. Nh4 {[%clk 0:00:45]}  Bh5 {[%clk 0:01:55]} 18. Kd2 {[%clk 0:00:29]}  a5 {[%clk 0:01:46]} 19. Nf5 {[%clk 0:00:22]}  Rg8 {[%clk 0:01:05]} 20. Ke3 {[%clk 0:00:17]}  Bg4 {[%clk 0:00:57]} 21. Nh4 {[%clk 0:00:08]}  Ra6 {[%clk 0:00:55]} 22. Nf3 {[%clk 0:00:04]}  Re8 {[%clk 0:00:51]} 23. Ng5 {[%clk 0:00:04]}  h6 {[%clk 0:00:51]} 24. h3 {[%clk 0:00:02]}  Bh5 {[%clk 0:00:45]} 25. g4 {[%clk 0:00:02]}  Bg6 {[%clk 0:00:44]} 26. Ne4 {[%clk 0:00:03]}  Nd4 {[%clk 0:00:42]} 27. h4 {[%clk 0:00:03]}  Nc2+ {[%clk 0:00:38]} 28. Kd3 {[%clk 0:00:01]}  Nb4+ {[%clk 0:00:38]} 29. Ke3 {[%clk 0:00:02]}  Nxa2 {[%clk 0:00:37]} 30. h5 {[%clk 0:00:01]}  Bxe4 {[%clk 0:00:34]} 31. Kxe4 {[%clk 0:00:02]}  Nxc3+ {[%clk 0:00:35]} 32. bxc3 {[%clk 0:00:03]}  Rc6 {[%clk 0:00:35]} 0-1


[Site "https://www.chess.com"]